[Event "44th Chess Olympiad Women 2022"]
[Site "Chennai"]
[Date "2022.07.30"]
[Round "2.6"]
[White "Nazarova, Anastasia"]
[Black "Mammadzada, Gunay"]
[Result "0-1"]
[WhiteElo "2208"]
[BlackElo "2455"]
[Annotator "TA"]
[PlyCount "64"]
[EventDate "2022.??.??"]
[TimeControl "60"]

{[%evp 11,64,7,15,16,29,14,35,60,53,50,33,18,47,54,41,0,0,28,29,24,27,9,19,0,0,
0,0,-20,-21,-112,-125,-192,-208,-519,-501,-518,-509,-514,-508,-479,-475,-1700,
-1662,-29983,-5818,-29984,-29985,-29988,-29989,-29993,-29994,-29994,-29990,
-29990,-29990]} 1. e4 {[%emt 0:00:02]} c5 {[%emt 0:00:06]} 2. Nf3 {[%emt 0:00:
00]} d6 {[%emt 0:00:04]} 3. d4 {[%emt 0:00:05]} cxd4 {[%emt 0:00:13]} 4. Nxd4 {
[%emt 0:00:04]} Nf6 {[%emt 0:00:12]} 5. Nc3 {[%emt 0:00:04]} a6 {[%emt 0:00:10]
} 6. Nb3 {[%emt 0:00:06]} Nc6 {[%emt 0:05:57]} 7. Be3 {[%emt 0:00:56] B56:
Classical Sicilian: Unusual Lines.} e6 {[%emt 0:07:05]} 8. g4 {[%emt 0:03:32]
[%cal Yg2g4,Yg4g5]} Be7 {[%emt 0:02:00]} 9. g5 {[%emt 0:05:10] White is
slightly better.} Nd7 {[%emt 0:00:08]} 10. h4 {[%emt 0:00:32]} b5 {[%emt 0:00:
00]} 11. f4 {[%emt 0:09:04]} Nb6 {[%emt 0:08:42] [#]} 12. a3 $146 {[%emt 0:00:
00]} ({Predecessor:} 12. Qe2 b4 13. Qf2 Rb8 14. Ne2 Qc7 15. Ng3 O-O 16. Bd3 a5
17. h5 a4 18. Nd2 {0-1 (30) De Groen,M-Canfell,G (2285) Sydney 1996}) 12... Rb8
{[%emt 0:10:11]} 13. Qf3 {[%emt 0:10:26]} Nc4 {[%emt 0:13:13]} 14. Bxc4 {
[%emt 0:06:40]} bxc4 {[%emt 0:00:12]} 15. Nd4 {[%emt 0:00:04]} Bd7 {[%emt 0:00:
00]} 16. Nxc6 {[%emt 0:11:24]} Bxc6 {[%emt 0:00:05]} 17. Bd4 {[%emt 0:00:14]}
O-O {[%emt 0:08:51]} 18. O-O-O {[%emt 0:07:16]} Qc7 {[%emt 0:02:33]} 19. Rhe1 {
[%emt 0:01:14]} e5 {[%emt 0:00:39]} 20. Bf2 {[%emt 0:07:39]} (20. fxe5 $11 {
was the only way to keep the balance.} dxe5 21. Qg3) 20... Qb7 $17 {[%emt 0:00:
00]} 21. f5 {[%emt 0:00:19] [#]} (21. Kd2 $17) 21... Bd8 $1 $19 {[%emt 0:03:31]
} ({Worse is} 21... Qxb2+ 22. Kd2 Rfd8 23. Rb1 Qxa3 24. f6 $17) 22. f6 $2 {
[%emt 0:04:28]} (22. Kd2 {is more resistant.}) 22... Ba5 {[%emt 0:00:13]} 23.
fxg7 {[%emt 0:00:53]} Rfd8 {[%emt 0:00:21]} 24. Kd2 {[%emt 0:01:09]} d5 {
[%emt 0:01:50] Threatens to win with ...dxe4+.} 25. Ke2 {[%emt 0:00:32][%cal
Re4d5]} d4 {[%emt 0:00:37]} ({Don't go for} 25... Qxb2 $2 26. exd5 Bb5 27. Nxb5
Qxc2+ 28. Kf1 Bxe1 29. Rxe1 Rxb5 30. Rxe5 $19) 26. Bg3 {[%emt 0:01:49]} (26.
Kf1 $142) 26... dxc3 {[%emt 0:02:31]} 27. bxc3 {[%emt 0:00:05]} Bxe4 {[%emt 0:
00:00][%cal Yc6e4,Ye4c2,Yc2d3]} 28. Qf6 {[%emt 0:00:14]} Bxc2 {[%emt 0:01:04]
Black mates.} 29. Rxd8+ {[%emt 0:01:24]} Rxd8 {[%emt 0:00:38]} 30. Qxe5 {
[%emt 0:01:05]} Qg2+ {[%emt 0:00:41]} 31. Bf2 {[%emt 0:00:05]} Qg4+ {[%emt 0:
00:43]} 32. Kf1 {[%emt 0:00:03]} Bd3+ {[%emt 0:00:07] Weighted Error Value:
White=1.03/Black=0.03 (flawless)} 0-1

[Event "44th Chess Olympiad Women 2022"]
[Site "Chennai"]
[Date "2022.07.30"]
[Round "2.7"]
[White "Omonova, Umida"]
[Black "Yip, Carissa"]
[Result "1-0"]
[WhiteElo "2195"]
[BlackElo "2416"]
[Annotator "TA"]
[PlyCount "179"]
[EventDate "2022.??.??"]
[TimeControl "60"]

{[%evp 11,179,13,13,13,16,12,20,12,27,17,27,14,19,12,22,30,32,32,79,72,110,31,
86,86,87,67,65,48,83,38,40,28,39,-179,-187,-325,-326,-345,-311,-348,-301,-385,
-414,-399,-325,-348,-358,-341,-349,-392,-372,-395,-456,-434,-338,-339,-346,
-330,-341,-281,-206,-202,-187,-199,0,0,0,0,0,0,0,0,0,-81,-83,-84,-77,-116,-106,
-121,-77,-79,-80,-80,0,-81,-86,-79,0,0,0,0,0,0,0,-87,0,0,0,-87,0,0,0,0,0,0,0,
-112,0,0,0,-112,0,0,0,-112,0,0,0,0,59,0,0,0,0,0,0,-48,0,0,0,0,47,55,150,0,0,0,
7,0,174,0,0,0,313,216,723,638,687,677,793,784,713,431,777,634,729,617,750,569,
1513,1245,1148,1097,29991,1225,3395,2739,29988,29981]} 1. e4 {[%emt 0:00:08]}
e5 {[%emt 0:00:08]} 2. Nf3 {[%emt 0:00:13]} Nc6 {[%emt 0:00:04]} 3. Bc4 {
[%emt 0:00:13]} Bc5 {[%emt 0:00:07]} 4. O-O {[%emt 0:00:16]} Nf6 {[%emt 0:00:
00][%cal Yg8f6,Yf6h5,Yh5f4]} 5. d3 {[%emt 0:00:19]} d6 {[%emt 0:00:09]} 6. c3 {
[%emt 0:00:30]} a6 {[%emt 0:00:06]} 7. a4 {[%emt 0:00:11] C54: Giuoco Piano: 4
c3 Nf6, main lines with 5 d4 and 5 d3.} Ba7 {[%emt 0:00:10]} 8. Nbd2 {[%emt 0:
00:30]} Nh5 {[%emt 0:00:13]} 9. Re1 {[%emt 0:04:20] The position is equal.} Nf4
{[%emt 0:00:07]} 10. Nf1 {[%emt 0:02:33] [#]} g5 $146 {[%emt 0:00:00]} ({
Predecessor:} 10... Qf6 11. Bxf4 Qxf4 12. Ne3 Ne7 13. d4 O-O 14. Qd2 Ng6 15.
Rad1 Bd7 16. a5 Rad8 17. Qd3 c6 18. Nf5 d5 19. Qe2 dxe4 {0-1 (19) Ly,D (2217)
-Schreiner,P (2467) Vienna 2018}) 11. Be3 {[%emt 0:08:12]} g4 {[%emt 0:00:00]}
12. N3d2 {[%emt 0:01:45]} Qf6 {[%emt 0:00:21]} 13. Bxa7 {[%emt 0:01:41]} Rxa7 {
[%emt 0:11:14]} 14. Ne3 {[%emt 0:01:22]} Ne7 {[%emt 0:00:37]} (14... h5 $14)
15. d4 $16 {[%emt 0:08:15]} ({Avoid the trap} 15. Nxg4 $2 Bxg4 16. Qxg4 Rg8 $19
) 15... Neg6 {[%emt 0:11:11]} 16. Nd5 {[%emt 0:03:57]} (16. Bf1 $16) 16... Qd8
{[%emt 0:05:07]} (16... Nxd5 $14 17. exd5 O-O) 17. dxe5 {[%emt 0:00:00]} dxe5 {
[%emt 0:00:14]} 18. Nf1 {[%emt 0:03:01]} O-O {[%emt 0:10:53]} 19. Ng3 {[%emt 0:
09:53]} Qg5 {[%emt 0:04:51]} 20. Qc1 {[%emt 0:05:38]} Be6 {[%emt 0:03:22]} 21.
Qe3 {[%emt 0:11:45]} Raa8 {[%emt 0:00:24]} 22. Rad1 $2 {[%emt 0:01:54]} (22.
Qc5 $14 {keeps the upper hand.}) 22... c6 $1 $19 {[%emt 0:00:00]} 23. Nb6 {
[%emt 0:03:44]} (23. Bf1 $142 cxd5 24. exd5) 23... Bxc4 $1 {[%emt 0:00:10]} 24.
Nxc4 {[%emt 0:08:42]} Nh4 {[%emt 0:00:27] Against Nf5} 25. Nf5 {[%emt 0:04:09]}
Nhxg2 {[%emt 0:01:18]} 26. Qc5 {[%emt 0:01:42]} Nxe1 {[%emt 0:02:30]} 27. Rxe1
{[%emt 0:00:04]} Nd3 {[%emt 0:07:55]} 28. Qe3 {[%emt 0:01:27]} Qxe3 {[%emt 0:
00:10]} 29. Rxe3 {[%emt 0:00:05]} Rad8 {[%emt 0:00:00]} 30. Kg2 {[%emt 0:03:38]
} h5 {[%emt 0:01:18]} 31. Kg3 {[%emt 0:00:54]} f6 {[%emt 0:01:19]} 32. Ncd6 {
[%emt 0:04:08]} Nf4 {[%emt 0:00:08]} 33. c4 {[%emt 0:01:06]} c5 {[%emt 0:01:38]
} 34. Rb3 {[%emt 0:01:09]} Rd7 {[%emt 0:00:00]} ({And not} 34... Ne2+ 35. Kh4
Rd7 36. Kxh5 $17) 35. Rb6 {[%emt 0:01:45]} Rfd8 {[%emt 0:06:15]} 36. a5 {
[%emt 0:00:20]} Rh7 {[%emt 0:04:25]} 37. Ne3 {[%emt 0:01:00]} Rdd7 $2 {[%emt 0:
03:57]} (37... Kh8 $19 {...Rg8 is the strong threat.} 38. Kh4 Rg8) 38. Nd5 $11
{[%emt 0:00:34]} Nxd5 {[%emt 0:04:22]} 39. cxd5 {[%emt 0:00:02] Endgame KRR-KRN
} Kf8 {[%emt 0:02:57][%cal Yc5c4] Prevents Ne8.} 40. b3 {[%emt 0:00:19]} Rc7 {
[%emt 0:02:46]} 41. Nc4 {[%emt 0:31:44]} Kg7 {[%emt 0:33:55]} 42. Nd6 {[%emt 0:
02:24]} (42. Kh4 $11) 42... Kg6 $17 {[%emt 0:00:49]} 43. Kh4 {[%emt 0:00:25]}
Rcd7 {[%emt 0:00:00][%cal Yd7d6]} 44. Ne8 {[%emt 0:00:00][%csl Ge8][%cal Rb6f6]
} Rhf7 {[%emt 0:00:00]} 45. Nd6 {[%emt 0:00:00]} Rfe7 {[%emt 0:00:00][%cal
Yd7d6]} 46. Nc4 {[%emt 0:00:00]} Re8 {[%emt 0:00:00]} 47. Ne3 {[%emt 0:00:00]}
Red8 {[%emt 0:00:00]} ({Black should play} 47... c4 $1 $17 {[%cal Rc4c3]
Hoping for ...c3.} 48. Nxc4 Rc7) 48. Nc4 {[%emt 0:00:00]} (48. Re6 $1 $11)
48... Re7 $1 {[%emt 0:00:00]} 49. Ne3 {[%emt 0:00:00]} Rc7 {[%emt 0:00:00]} (
49... c4 $1 $17 {[%cal Rc4c3]} 50. Nxc4 Ra8) 50. Nc4 $11 {[%emt 0:00:00]} Re8 {
[%emt 0:00:00]} 51. Nd6 {[%emt 0:00:00]} Rb8 {[%emt 0:00:00][%cal Yc5c4]} 52.
Nc4 {[%emt 0:00:00]} Re7 {[%emt 0:00:00]} 53. Nd6 {[%emt 0:00:00]} (53. Rd6 $11
{remains equal.}) 53... Rd7 {[%emt 0:00:00]} (53... c4 $1 $17 {[%cal Rc4c3]}
54. bxc4 Rc7) 54. Nc4 {[%emt 0:00:00]} Re8 {[%emt 0:00:00]} (54... Kg7 $11) 55.
Ne3 $1 $17 {[%emt 0:00:00]} Rh8 {[%emt 0:01:59]} ({Better is} 55... c4 $1 $17 {
[%cal Rc4c3]} 56. Nxc4 Rc7) 56. Nc4 $11 {[%emt 0:00:00] And now Nxe5+ would
win.} Re7 {[%emt 0:00:00]} 57. Nd6 {[%emt 0:00:00]} Rb8 {[%emt 0:00:16]} 58.
Nc4 $1 {[%emt 0:00:00]} Rd8 {[%emt 0:00:07]} (58... Rc8 $11) 59. Ne3 $1 $17 {
[%emt 0:00:00]} Ra8 {[%emt 0:00:12]} (59... c4 $1 $17 {[%cal Rc4c3]} 60. Nxc4
Ra8) 60. Nc4 $11 {[%emt 0:00:00]} Rb8 {[%emt 0:00:36]} 61. Ne3 {[%emt 0:00:00]}
(61. Nd6 $11 {keeps the balance.}) 61... Rbe8 {[%emt 0:00:46]} (61... c4 $1 $17
{[%cal Rc4c3]} 62. bxc4 Rc7) 62. Nc4 {[%emt 0:00:00]} Rd7 {[%emt 0:00:02]} (
62... Rg8 $11) 63. Ne3 $1 $17 {[%emt 0:00:00] [#]} Rh8 {[%emt 0:01:35]} (63...
c4 $1 $17 {[%cal Rc4c3]} 64. Nxc4 Rc7) 64. Nc4 $11 {[%emt 0:00:00] aiming for
Nxe5+.} Kf7 {[%emt 0:00:02]} 65. Nd6+ {[%emt 0:00:00]} Ke7 {[%emt 0:02:04]} (
65... Rxd6 $11 66. Rxd6 Kg6) 66. Nf5+ {[%emt 0:00:00]} ({White should try} 66.
Nxb7 $14 Rb8 67. Re6+ Kf7 68. Nxc5) 66... Kf7 {[%emt 0:00:04]} 67. Nd6+ {
[%emt 0:00:00]} Rxd6 {[%emt 0:01:31]} 68. Rxd6 {[%emt 0:00:00] Black must now
prevent Rd7+. KR-KR} Kg6 $1 {[%emt 0:00:02]} 69. Rb6 {[%emt 0:00:00]} (69. f3
$1 $11) 69... Rh7 {[%emt 0:00:08]} (69... Rc8 $1 $15 70. Rxb7 c4 71. bxc4 Rxc4)
70. f3 $1 {[%emt 0:00:00]} gxf3 {[%emt 0:00:39] ( -> ...f2)} 71. Kg3 {[%emt 0:
00:00]} f2 {[%emt 0:00:14]} (71... Rc7 $11) 72. Kxf2 $14 {[%emt 0:00:00]} Kg5 {
[%emt 0:00:00]} (72... Rc7 $1 $14) 73. Kg3 {[%emt 0:00:00]} (73. Ke3 $16) 73...
h4+ $1 $11 {[%emt 0:00:05]} 74. Kf3 {[%emt 0:00:00]} Rc7 {[%emt 0:00:42]} 75.
h3 {[%emt 0:00:00]} Rg7 $2 {[%emt 0:01:50] [#]} (75... Rd7 $11) 76. Ke3 $2 {
[%emt 0:00:00]} ({White must play} 76. Rd6 $1 $18) 76... Rc7 $1 {[%emt 0:00:09]
} 77. Kd3 {[%emt 0:00:00] Strongly threatening Re6.} f5 $2 {[%emt 0:00:11]} (
77... Rf7 $1 $11) 78. Re6 $18 {[%emt 0:00:00]} Kf4 $2 {[%emt 0:01:27]} (78...
c4+ 79. bxc4 fxe4+ 80. Kxe4 Rxc4+ 81. Kxe5 Rc3) 79. Rf6 {[%emt 0:00:00]} Kg3 {
[%emt 0:00:03]} 80. Rxf5 {[%emt 0:00:00]} Rg7 {[%emt 0:01:03]} 81. Rxe5 {
[%emt 0:00:00]} Kxh3 {[%emt 0:00:05]} 82. Rh5 {[%emt 0:00:00]} Kg4 {[%emt 0:00:
00]} (82... Rg1 $142 83. Rh6 Rd1+ 84. Ke2 Rd4) 83. Rh8 {[%emt 0:00:00]} Re7 {
[%emt 0:00:32]} 84. Ke3 {[%emt 0:00:00]} h3 {[%emt 0:00:43]} 85. d6 {[%emt 0:
00:00]} Rd7 {[%emt 0:00:20]} 86. Rg8+ {[%emt 0:03:04]} ({Not} 86. e5 Kf5 $16)
86... Kh4 {[%emt 0:01:04]} 87. e5 {[%emt 0:01:39]} Rh7 {[%emt 0:00:18]} 88. Kf2
{[%emt 0:00:10]} (88. e6 $142 Rh6 89. e7 Re6+ 90. Kf4 Rf6+ 91. Ke5 Rf1 92. d7
Re1+ 93. Kd6) 88... Rf7+ {[%emt 0:01:59]} 89. Kg1 {[%emt 0:00:11] White
threatens e6 and mate.} c4 {[%emt 0:00:39]} 90. bxc4 {[%emt 0:00:05] White
used his chance. Weighted Error Value: White=0.23 (precise) /Black=0.21 
(precise)} 1-0

[Event "44th Chess Olympiad Women 2022"]
[Site "Chennai"]
[Date "2022.07.30"]
[Round "2.7"]
[White "Zatonskih, Anna"]
[Black "Khamdamova, Afruza"]
[Result "1-0"]
[WhiteElo "2383"]
[BlackElo "1969"]
[Annotator "TA"]
[PlyCount "149"]
[EventDate "2022.??.??"]
[TimeControl "60"]

{[%evp 31,149,61,54,48,55,43,122,95,114,103,155,148,146,146,130,127,166,156,
218,208,241,238,271,268,262,265,327,312,345,346,345,337,299,284,295,291,291,
289,369,341,366,308,323,159,371,299,299,299,299,299,323,323,316,299,299,291,
284,284,275,268,800,800,798,798,782,798,775,775,804,810,620,334,604,373,591,
552,1928,1654,1933,1945,1610,1459,2012,1914,1906,1817,1762,1537,1758,1702,1719,
1631,1591,1555,1465,1292,1414,1293,1886,1802,1849,1725,5824,5800,7654,6617,
29972,29973,29975,29976,29976,29977,29977,29978,29979,29980,29980,29980,29983,
29984]} 1. d4 {[%emt 0:00:04]} Nf6 {[%emt 0:00:08]} 2. c4 {[%emt 0:00:05]} e6 {
[%emt 0:00:05]} 3. Nc3 {[%emt 0:00:14]} d5 {[%emt 0:00:17]} 4. cxd5 {[%emt 0:
00:00]} exd5 {[%emt 0:00:07]} 5. Bg5 {[%emt 0:00:07]} Be7 {[%emt 0:00:08]} 6.
e3 {[%emt 0:00:28]} O-O {[%emt 0:00:22]} 7. Bd3 {[%emt 0:00:12]} Nbd7 {[%emt 0:
00:00][%cal Yb8d7,Yd7f8,Yf8e6]} 8. Nf3 {[%emt 0:02:52]} c6 {[%emt 0:00:00]} 9.
Qc2 {[%emt 0:00:37]} Re8 {[%emt 0:01:35]} 10. O-O {[%emt 0:00:23]} Nf8 {
[%emt 0:00:37]} 11. Rab1 {[%emt 0:00:40]} g6 {[%emt 0:11:39]} 12. b4 {[%emt 0:
01:50]} a6 {[%emt 0:02:13]} 13. a4 {[%emt 0:00:59]} Ne6 {[%emt 0:00:06]} 14.
Bh4 {[%emt 0:00:37]} Ng7 {[%emt 0:00:15]} 15. b5 {[%emt 0:03:04]} axb5 {
[%emt 0:00:27]} 16. axb5 {[%emt 0:00:03]} Bf5 {[%emt 0:00:10]} 17. bxc6 {
[%emt 0:05:59] D36: Queen's Gambit Declined: Exchange Variation: Main line (5
Bg5 c6 6 Qc2).} bxc6 {[%emt 0:00:09]} 18. Ne5 {[%emt 0:07:22]} Rc8 {[%emt 0:00:
00]} (18... Bxd3 $14 19. Qxd3 Qd6) 19. Rb7 $1 $16 {[%emt 0:12:33] White is
better.} Bxd3 {[%emt 0:18:26]} 20. Qxd3 {[%emt 0:04:24]} Rc7 {[%emt 0:01:13] 
[#]} ({Black should play} 20... Nf5) 21. Rxc7 $1 {[%emt 0:20:14] 0x0.
0016806ea63fdp-1022s more active pieces.} Qxc7 {[%emt 0:00:06] [#]} 22. Rc1 $1
{[%emt 0:00:19] aiming for Bxf6.} Qb7 {[%emt 0:05:42]} 23. Qb1 {[%emt 0:01:00]}
Qa8 {[%emt 0:06:37]} 24. Qa2 {[%emt 0:04:19]} Qb7 {[%emt 0:28:04]} (24... Qxa2
$16 {was called for.} 25. Nxa2 Ra8) 25. Rb1 $18 {[%emt 0:04:13]} Qc7 {[%emt 0:
00:00]} 26. Qa6 {[%emt 0:02:38]} Nf5 {[%emt 0:01:01]} 27. Bxf6 {[%emt 0:09:04]}
Bxf6 {[%emt 0:00:05]} 28. Qxc6 {[%emt 0:00:15]} (28. Nxc6 Re6 $16) 28... Qd8 {
[%emt 0:09:32]} 29. Nd7 {[%emt 0:10:02] Pair of Knights!} ({Not} 29. Qxd5 Qxd5
30. Nxd5 Bxe5 $16) ({Don't play} 29. Nxd5 $6 Bxe5 30. dxe5 Rxe5 $18) 29... Re6
{[%emt 0:01:03]} 30. Qxd5 {[%emt 0:01:43] Rb8 is the strong threat.} Kg7 {
[%emt 0:00:43] [#]} 31. Nxf6 $146 {[%emt 0:03:17]} ({Predecessor:} 31. Rb8 Qe7
32. Nxf6 Qxf6 33. Qc5 Qxd4 34. Qxd4+ Nxd4 35. h3 Nf5 36. Rb7 h5 37. Kf1 {
½-½ (98) Santos,A (2194)-Padeiro,J (2241) Cascais 2018}) 31... Qxf6 {[%emt 0:
00:00]} 32. h3 {[%emt 0:01:39]} Ne7 {[%emt 0:00:48]} 33. Qb5 {[%emt 0:00:46]}
Nf5 {[%emt 0:00:48]} 34. Nd5 {[%emt 0:00:50]} Qh4 {[%emt 0:00:53]} 35. Nf4 {
[%emt 0:01:31]} Re7 {[%emt 0:00:17]} 36. d5 {[%emt 0:00:51] Black must now
prevent Ra1.} Nd6 {[%emt 0:01:11]} 37. Qc5 {[%emt 0:01:18]} (37. Qa4 $18 {
[%cal Yf4e6] is more deadly. Hoping for Ne6+!} Qf6 38. Rb6) 37... Qf6 {[%emt 0:
00:00] [#] Prevents Ne6+.} (37... Qxf2+ $16 38. Kxf2 Ne4+ 39. Kf3 Nxc5) 38.
Ne6+ $1 fxe6 {[%emt 0:00:14]} 39. Qxd6 {[%emt 0:01:21]} exd5 {[%emt 0:00:21]}
40. Qxd5 {[%emt 0:00:10] Endgame KQR-KQR} Rf7 {[%emt 0:00:35]} 41. Qd2 {
[%emt 0:30:24]} Qf5 {[%emt 0:31:20]} 42. Rc1 {[%emt 0:00:00]} Rd7 {[%emt 0:01:
03]} 43. Qc2 {[%emt 0:02:39]} Qe5 {[%emt 0:00:31]} 44. Rd1 {[%emt 0:00:00]} Rc7
{[%emt 0:00:00]} 45. Qd2 {[%emt 0:00:00]} h5 $2 {[%emt 0:00:00]} (45... h6 46.
Qd3 Rf7) 46. Qd4 {[%emt 0:00:00]} Qxd4 {[%emt 0:00:00]} 47. Rxd4 {[%emt 0:00:
00] KR-KR} ({Less strong is} 47. exd4 Kf7 48. d5 Rc5 $18) 47... Rc1+ {[%emt 0:
00:00]} 48. Kh2 {[%emt 0:00:00]} Rc2 {[%emt 0:00:00]} 49. Kg3 {[%emt 0:00:00]}
Kf6 {[%emt 0:00:00]} 50. Rd6+ {[%emt 0:00:00]} Kf7 {[%emt 0:00:00]} 51. Ra6 {
[%emt 0:00:00]} Rb2 $2 {[%emt 0:00:00]} (51... h4+ 52. Kf3 Kg7) 52. Kf3 {
[%emt 0:00:00]} Rb5 {[%emt 0:00:00]} (52... Rb4 $142 53. g4 Rb5) 53. h4 {
[%emt 0:00:00]} Rb4 {[%emt 0:00:00]} 54. Ra7+ {[%emt 0:00:00]} Kf6 {[%emt 0:00:
00]} 55. g3 {[%emt 0:00:00]} Rc4 {[%emt 0:00:00]} 56. Ra6+ {[%emt 0:00:00]} Kf7
{[%emt 0:00:00]} 57. e4 {[%emt 0:00:00]} Rc2 {[%emt 0:00:00]} 58. Ke3 {[%emt 0:
00:00]} Rb2 {[%emt 0:00:00]} 59. Rd6 {[%emt 0:00:00]} Rb3+ {[%emt 0:00:00]} 60.
Rd3 {[%emt 0:00:00]} Rb2 {[%emt 0:00:00]} 61. Rd2 {[%emt 0:00:00]} Rb5 {
[%emt 0:00:00]} 62. Kf4 {[%emt 0:00:00]} Kf6 {[%emt 0:00:00]} 63. Ra2 {[%emt 0:
00:00]} Rc5 {[%emt 0:00:00]} 64. Ra7 {[%emt 0:00:00]} Rc2 {[%emt 0:00:00]} 65.
e5+ {[%emt 0:00:00]} Ke6 {[%emt 0:00:00]} 66. Ra6+ {[%emt 0:00:00]} Ke7 {
[%emt 0:00:00]} 67. f3 {[%emt 0:00:00]} Rc4+ {[%emt 0:00:00]} 68. Kg5 {[%emt 0:
00:00]} Rc3 {[%emt 0:00:00]} 69. Rf6 {[%emt 0:00:00] White mates.} Re3 {
[%emt 0:00:00]} 70. Kxg6 {[%emt 0:00:00]} Rxe5 {[%emt 0:00:00]} 71. Rf5 {
[%emt 0:00:00]} Re2 {[%emt 0:00:00]} 72. Kxh5 {[%emt 0:00:00]} Ke6 {[%emt 0:00:
00]} 73. g4 {[%emt 0:00:00]} Rh2 {[%emt 0:00:00]} 74. Kg5 {[%emt 0:00:00]} Ke7
{[%emt 0:00:00]} 75. h5 {[%emt 0:00:00] Black did not feel at home in the
position after the opening. Weighted Error Value: White=0.19 (very precise) /
Black=0.41} 1-0